[Event "Turkish-ch Youth U16 2024"]
[Site "Belek Antalya"]
[Date "2024.01.26"]
[Round "8"]
[White "Solak, Serra"]
[Black "Ulus, Ekin"]
[Result "0-1"]
[ECO "D05"]
[WhiteElo "1251"]
[BlackElo "1452"]
[Annotator "NA RC COMBH"]
[PlyCount "124"]
[EventDate "2024.01.21"]
[EventType "swiss"]
[EventCountry "TUR"]
[SourceTitle "playchess.com"]
[Source "ChessBase"]
[SourceQuality "1"]
[TimeControl "5400+30"]

1. d4 {[%emt 0:01:00]} Nf6 {[%emt 0:01:00]} 2. Nf3 {[%emt 0:00:30]} e6 {[%emt 0:00:00]} 3. c3 {[%emt 0:01:30]} d5 {[%emt 0:00:00]} 4. e3 {[%emt 0:00:30]} b6 {[%emt 0:00:30]} 5. Bd3 {[%emt 0:00:30]} Bb7 {[%emt 0:00:00]} 6. Nbd2 {[%emt 0:00:30]} Be7 {[%emt 0:00:00]} 7. Qe2 {[%emt 0:01:30]} O-O {[%emt 0:01:30]} 8. O-O {[%emt 0:00:30]} Nbd7 {[%emt 0:00:30]} 9. Ne5 {[%emt 0:06:30]} Nxe5 {[%emt 0:08:30]} 10. dxe5 {[%emt 0:00:30]} Nd7 {[%emt 0:00:00]} 11. f4 {[%emt 0:01:30]} f5 {[%emt 0:00:00]} 12. exf6 {[%emt 0:12:30]} Nxf6 {[%emt 0:05:30]} 13. e4 {[%emt 0:07:30]} Nd7 {[%emt 0:27:30]} 14. Nb3 {[%emt 0:18:30]} a5 {[%emt 0:20:30]} 15. exd5 {[%emt 0:27:52]} exd5 {[%emt 0:01:30]} 16. Rf3 {[%emt 0:04:06]} Nf6 {[%emt 0:03:30]} 17. Rg3 {[%emt 0:03:32]} c5 {[%emt 0:05:30]} 18. Bf5 {[%emt 0:03:09]} Bd6 {[%emt 0:03:30]} 19. Rh3 {[%emt 0:01:48]} Bc8 {[%emt 0:03:02]} 20. Be6+ {[%emt 0:01:23]} Bxe6 {[%emt 0:00:24]} 21. Qxe6+ {[%emt 0:00:37]} Kh8 {[%emt 0:00:30]} 22. Qf5 {[%emt 0:00:30]} a4 {[%emt 0:00:30]} 23. Nd2 {[%emt 0:00:00]} Qe7 {[%emt 0:04:37]} 24. Nf3 {[%emt 0:02:14]} Rae8 {[%emt 0:00:30]} 25. Bd2 {[%emt 0:00:30]} Qe4 {[%emt 0:00:30]} 26. Qxe4 {[%emt 0:00:30]} Nxe4 {[%emt 0:00:30]} 27. Rd1 {[%emt 0:00:30]} Bxf4 {[%emt 0:07:20]} 28. Bxf4 {[%emt 0:01:01]} Rxf4 {[%emt 0:00:30]} 29. Rxd5 {[%emt 0:00:30]} a3 {[%emt 0:00:30]} 30. bxa3 {[%emt 0:00:30]} Nxc3 {[%emt 0:00:30]} 31. Rdh5 {[%emt 0:00:30]} h6 {[%emt 0:00:30]} 32. R5h4 {[%emt 0:00:30]} Re1+ {[%emt 0:00:30]} 33. Kf2 {[%emt 0:00:30]} Re2+ {[%emt 0:00:30]} 34. Kg3 {[%emt 0:01:24]} Rxh4 {[%emt 0:01:45]} 35. Rxh4 {[%emt 0:00:08]} Rxa2 {[%emt 0:00:54]} 36. Rc4 {[%emt 0:01:51]} Nd5 {[%emt 0:00:59]} 37. Ra4 {[%emt 0:00:43]} Ne3 {[%emt 0:00:59]} 38. Ne1 {[%emt 0:00:55]} b5 {[%emt 0:00:59]} 39. Ra5 {[%emt 0:00:37]} Re2 {[%emt 0:01:05]} 40. Nd3 {[%emt 0:00:39]} c4 {[%emt 0:00:30]} 41. Nf4 {[%emt 0:00:00]} Rb2 {[%emt 0:00:38]} 42. Kf3 {[%emt 0:00:44]} Rb3 {[%emt 0:00:27]} 43. a4 {[%emt 0:00:16]} Nd5+ {[%emt 0:00:37]} 44. Ke4 {[%emt 0:00:19]} Nxf4 {[%emt 0:00:49]} 45. Kxf4 {[%emt 0:00:03]} c3 {[%emt 0:00:48]} 46. Ke3 {[%emt 0:00:39]} bxa4 {[%emt 0:00:32]} 47. Rxa4 {[%emt 0:00:14]} Kh7 {[%emt 0:00:34]} 48. g3 {[%emt 0:01:34]} Kg6 {[%emt 0:00:08]} 49. Rc4 {[%emt 0:00:22]} Kf5 {[%emt 0:00:19]} 50. h4 {[%emt 0:00:22]} c2+ {[%emt 0:01:25]} 51. Kf2 {[%emt 0:01:01]} Rb2 {[%emt 0:00:08]} 52. Kf3 {[%emt 0:00:30]} Ke5 {[%emt 0:00:30]} 53. Ke3 {[%emt 0:00:06]} Kd5 {[%emt 0:00:06]} 54. Rc7 {[%emt 0:00:30]} Rb3+ {[%emt 0:00:30]} 55. Kf4 {[%emt 0:00:30]} Rb4+ {[%emt 0:00:30]} 56. Ke3 {[%emt 0:00:30]} Rc4 {[%emt 0:00:00]} 57. Rxc4 {[%emt 0:00:06]} Kxc4 {[%emt 0:00:00]} 58. Kd2 {[%emt 0:00:00]} c1=Q+ {[%emt 0:00:22]} 59. Kxc1 {[%emt 0:00:13]} Kd3 {[%emt 0:00:00]} 60. h5 {[%emt 0:01:07]} Ke3 {[%emt 0:00:14]} 61. Kd1 {[%emt 0:00:30]} Kf3 {[%emt 0:00:00]} 62. Ke1 {[%emt 0:00:05]} Kxg3 {[%emt 0:00:00]} 0-1

[Event "Turkish-ch Youth U16 2024"]
[Site "Belek Antalya"]
[Date "2024.01.27"]
[Round "9"]
[White "Erten, Kerem"]
[Black "Tamer, Kayra"]
[Result "1-0"]
[ECO "B17"]
[WhiteElo "2231"]
[BlackElo "1545"]
[Annotator "NA RC"]
[PlyCount "105"]
[EventDate "2024.01.21"]
[EventType "swiss"]
[EventCountry "TUR"]
[SourceTitle "playchess.com"]
[Source "ChessBase"]
[SourceQuality "1"]
[TimeControl "5400+30"]

1. e4 {[%emt 0:01:00]} c6 {[%emt 0:01:00]} 2. d4 {[%emt 0:00:30]} d5 {[%emt 0:00:30]} 3. Nc3 {[%emt 0:00:30]} dxe4 {[%emt 0:00:00]} 4. Nxe4 {[%emt 0:00:00]} Nd7 {[%emt 0:00:00]} 5. Nf3 {[%emt 0:00:00]} Ngf6 {[%emt 0:00:30]} 6. Ng3 {[%emt 0:00:30]} e6 {[%emt 0:00:00]} 7. Bd3 {[%emt 0:04:30]} c5 {[%emt 0:01:00]} 8. c3 {[%emt 0:02:30]} Be7 {[%emt 0:02:30]} 9. O-O {[%emt 0:01:30]} O-O {[%emt 0:00:30]} 10. Re1 {[%emt 0:07:30]} b6 {[%emt 0:03:30]} 11. Qe2 {[%emt 0:02:30]} cxd4 {[%emt 0:08:30] B17: Caro-Kann: Modern Line (4...Nd7).} 12. Nxd4 {[%emt 0:01:30]} Nc5 {[%emt 0:06:30]} 13. Bc4 {[%emt 0:06:30]} Bb7 {[%emt 0:04:30] [#]} 14. Ngf5 $1 {[%emt 0:08:30]} exf5 {[%emt 0:23:30]} 15. Qxe7 {[%emt 0:01:30]} Qxe7 {[%emt 0:00:30]} 16. Rxe7 {[%emt 0:00:30]} Bd5 {[%emt 0:00:30]} 17. Bxd5 {[%emt 0:05:30]} (17. Bb5 $14) 17... Nxd5 {[%emt 0:00:00]} 18. Re5 {[%emt 0:03:30]} Rfe8 {[%emt 0:01:00]} 19. Rxe8+ {[%emt 0:00:30]} Rxe8 {[%emt 0:00:00]} 20. Bd2 {[%emt 0:01:30]} Nd3 {[%emt 0:05:00]} 21. b3 {[%emt 0:01:30]} g6 $14 {[%emt 0:05:30]} 22. Kf1 {[%emt 0:01:30]} Rc8 {[%emt 0:06:30]} 23. c4 {[%emt 0:02:30]} N5f4 {[%emt 0:01:30]} 24. Ne2 {[%emt 0:04:30]} Nxe2 {[%emt 0:00:30]} 25. Kxe2 {[%emt 0:00:30]} Nc5 {[%emt 0:00:30]} 26. Be3 {[%emt 0:01:30]} Kf8 {[%emt 0:01:30]} 27. Rd1 {[%emt 0:00:30]} Ke7 {[%emt 0:00:30]} 28. Bg5+ {[%emt 0:00:30]} f6 {[%emt 0:00:30]} 29. Bc1 {[%emt 0:00:30]} Rd8 {[%emt 0:04:30]} 30. Ba3 {[%emt 0:04:30]} Rxd1 {[%emt 0:00:30]} 31. Kxd1 {[%emt 0:01:30]} f4 {[%emt 0:03:30]} 32. Bxc5+ {[%emt 0:01:30]} bxc5 {[%emt 0:00:00]} 33. f3 {[%emt 0:00:30]} Kd6 {[%emt 0:00:00]} 34. Kd2 {[%emt 0:00:30]} h5 {[%emt 0:07:11]} 35. Kc3 {[%emt 0:00:30]} h4 {[%emt 0:00:07]} 36. h3 {[%emt 0:00:30]} a5 {[%emt 0:00:20]} 37. a3 {[%emt 0:01:30]} Kc6 {[%emt 0:02:19]} 38. b4 {[%emt 0:00:00]} Kb6 {[%emt 0:00:17]} 39. bxc5+ {[%emt 0:01:00]} Kxc5 {[%emt 0:00:13]} 40. Kd3 {[%emt 0:00:30]} f5 {[%emt 0:00:30]} 41. Kc3 {[%emt 0:00:00]} g5 {[%emt 0:01:03]} 42. Kd3 {[%emt 0:00:00]} g4 {[%emt 0:02:34]} 43. Kc3 {[%emt 0:00:00]} Kc6 {[%emt 0:01:32]} 44. Kd4 {[%emt 0:00:00]} gxh3 {[%emt 0:01:12]} 45. gxh3 {[%emt 0:00:30]} Kd6 {[%emt 0:00:30]} 46. c5+ {[%emt 0:00:30]} Kc6 {[%emt 0:00:00]} 47. a4 {[%emt 0:00:00]} Kd7 {[%emt 0:03:04]} 48. Kd5 {[%emt 0:00:00]} Kc7 {[%emt 0:00:30]} 49. c6 {[%emt 0:00:30]} Kc8 {[%emt 0:00:30]} 50. Kc5 {[%emt 0:00:00]} Kb8 {[%emt 0:00:02]} 51. Kb6 {[%emt 0:00:00]} Ka8 {[%emt 0:00:30]} 52. Kxa5 {[%emt 0:00:30]} Ka7 {[%emt 0:00:00]} 53. Kb5 {[%emt 0:00:00]} 1-0

[Event "Turkish-ch Youth U16 2024"]
[Site "Belek Antalya"]
[Date "2024.01.27"]
[Round "9"]
[White "Yildiz, Serdar Murat"]
[Black "Kececi, Kaan"]
[Result "1-0"]
[ECO "B78"]
[WhiteElo "2055"]
[BlackElo "1363"]
[Annotator "NA RC"]
[PlyCount "63"]
[EventDate "2024.01.21"]
[EventType "swiss"]
[EventCountry "TUR"]
[SourceTitle "playchess.com"]
[Source "ChessBase"]
[SourceQuality "1"]
[TimeControl "5400+30"]

1. e4 {[%emt 0:01:00]} c5 {[%emt 0:01:00]} 2. Nf3 {[%emt 0:00:30]} d6 {[%emt 0:00:30]} 3. d4 {[%emt 0:00:30]} cxd4 {[%emt 0:00:30]} 4. Nxd4 {[%emt 0:00:30]} Nf6 {[%emt 0:00:30]} 5. Nc3 {[%emt 0:00:30]} g6 {[%emt 0:00:30]} 6. Be3 {[%emt 0:00:30]} Bg7 {[%emt 0:00:00]} 7. f3 {[%emt 0:00:00]} O-O {[%emt 0:00:00]} 8. Qd2 {[%emt 0:00:00]} Nc6 {[%emt 0:00:00]} 9. Bc4 {[%emt 0:00:00]} Bd7 {[%emt 0:00:00]} 10. O-O-O {[%emt 0:00:00]} Rc8 {[%emt 0:00:00]} 11. Bb3 {[%emt 0:00:00]} Nxd4 {[%emt 0:00:00]} 12. Bxd4 {[%emt 0:00:00]} b5 {[%emt 0:00:00]} 13. a3 {[%emt 0:00:00]} a5 {[%emt 0:00:00]} 14. Nd5 {[%emt 0:00:00]} Nxd5 {[%emt 0:00:30]} 15. Bxg7 {[%emt 0:00:00]} Kxg7 {[%emt 0:00:30]} 16. exd5 {[%emt 0:00:00]} Rc5 {[%emt 0:08:30]} 17. h4 {[%emt 0:07:30]} h6 {[%emt 0:05:30]} 18. Rhe1 {[%emt 0:06:30]} Re8 {[%emt 0:07:30]} 19. g4 {[%emt 0:06:30]} Qc7 {[%emt 0:13:30]} 20. Qd4+ {[%emt 0:09:30]} Kg8 {[%emt 0:01:30]} 21. Rd2 {[%emt 0:03:30]} a4 {[%emt 0:14:30]} 22. Ba2 {[%emt 0:00:30]} Qa5 {[%emt 0:17:30]} 23. h5 {[%emt 0:00:30]} g5 {[%emt 0:01:30]} 24. f4 {[%emt 0:18:30]} Rec8 {[%emt 0:00:30]} 25. Rxe7 {[%emt 0:07:30]} Bxg4 {[%emt 0:07:30]} 26. fxg5 {[%emt 0:11:30]} Bf5 {[%emt 0:00:30]} 27. Bb1 {[%emt 0:02:30]} Qb6 {[%emt 0:09:23]} 28. c3 {[%emt 0:07:51]} b4 {[%emt 0:02:34]} 29. Bxf5 {[%emt 0:04:44]} bxc3 {[%emt 0:00:30]} 30. Bh7+ {[%emt 0:00:10]} Kf8 {[%emt 0:00:43]} 31. Qh8+ {[%emt 0:00:41]} Kxe7 {[%emt 0:00:30]} 32. Re2+ {[%emt 0:00:00]} 1-0

[Event "Turkish-ch Youth U16 2024"]
[Site "Belek Antalya"]
[Date "2024.01.27"]
[Round "9"]
[White "Gungor, Cihan Akif"]
[Black "Pehlivan, Mert"]
[Result "0-1"]
[ECO "B43"]
[WhiteElo "1862"]
[BlackElo "1710"]
[Annotator "NA RC COMBH"]
[PlyCount "100"]
[EventDate "2024.01.21"]
[EventType "swiss"]
[EventCountry "TUR"]
[SourceTitle "playchess.com"]
[Source "ChessBase"]
[SourceQuality "1"]
[TimeControl "5400+30"]

1. e4 {[%emt 0:01:00]} c5 {[%emt 0:01:00]} 2. Nf3 {[%emt 0:00:30]} e6 {[%emt 0:00:30]} 3. d4 {[%emt 0:00:30]} cxd4 {[%emt 0:00:30]} 4. Nxd4 {[%emt 0:00:30]} a6 {[%emt 0:00:30]} 5. Nc3 {[%emt 0:00:30]} Qc7 {[%emt 0:00:00]} 6. Be2 {[%emt 0:00:00]} Nf6 {[%emt 0:00:00]} 7. O-O {[%emt 0:00:00]} Bb4 {[%emt 0:00:30]} 8. Qd3 {[%emt 0:06:30]} d6 {[%emt 0:05:30]} 9. f4 {[%emt 0:04:30]} Nbd7 {[%emt 0:09:30]} 10. Bf3 {[%emt 0:00:30]} O-O {[%emt 0:03:30]} 11. Kh1 {[%emt 0:00:30]} Bxc3 {[%emt 0:02:30]} 12. bxc3 {[%emt 0:04:30]} Nc5 {[%emt 0:02:30]} 13. Qe3 {[%emt 0:02:30]} e5 {[%emt 0:04:30]} 14. Nb3 {[%emt 0:03:30]} b6 {[%emt 0:06:30]} 15. fxe5 {[%emt 0:15:30]} dxe5 {[%emt 0:00:30]} 16. Nxc5 {[%emt 0:01:30]} Qxc5 {[%emt 0:01:30]} 17. Qxc5 {[%emt 0:01:30]} bxc5 {[%emt 0:02:30]} 18. Ba3 {[%emt 0:00:30]} Bb7 {[%emt 0:05:30]} 19. Rfe1 {[%emt 0:07:30]} Rfc8 {[%emt 0:04:30]} 20. Rab1 {[%emt 0:00:30]} Rc7 {[%emt 0:02:30]} 21. Rbd1 {[%emt 0:07:30]} Kf8 {[%emt 0:05:30]} 22. Kg1 {[%emt 0:01:30]} Ke7 {[%emt 0:02:30]} 23. Kf2 {[%emt 0:00:30]} Rd8 {[%emt 0:08:30]} 24. Rd3 {[%emt 0:00:30]} Rd6 {[%emt 0:04:30]} 25. Red1 {[%emt 0:01:30]} Rb6 {[%emt 0:00:30]} 26. Ke3 {[%emt 0:00:30]} Ne8 {[%emt 0:03:30]} 27. Be2 {[%emt 0:09:30]} Nd6 {[%emt 0:01:30]} 28. Rd5 {[%emt 0:00:00]} Bxd5 {[%emt 0:10:49]} 29. Rxd5 {[%emt 0:00:00]} f6 {[%emt 0:00:30]} 30. Bxc5 {[%emt 0:00:30]} Rbc6 {[%emt 0:00:30]} 31. Bb4 {[%emt 0:00:30]} Rxc3+ {[%emt 0:00:30]} 32. Bxc3 {[%emt 0:00:30]} Rxc3+ {[%emt 0:00:30]} 33. Bd3 {[%emt 0:00:30]} Ra3 {[%emt 0:00:30]} 34. g4 {[%emt 0:00:30]} Rxa2 {[%emt 0:00:30]} 35. c4 {[%emt 0:00:30]} Ra4 {[%emt 0:00:30]} 36. c5 {[%emt 0:00:30]} Nc4+ {[%emt 0:00:30]} 37. Ke2 {[%emt 0:00:30]} Ra2+ {[%emt 0:00:30]} 38. Kf3 {[%emt 0:00:30]} Nb2 {[%emt 0:09:34]} 39. Be2 {[%emt 0:19:36]} Ra3+ {[%emt 0:00:30]} 40. Kf2 {[%emt 0:00:30]} Rc3 {[%emt 0:00:11]} 41. Bxa6 {[%emt 0:00:00]} Na4 {[%emt 0:00:30]} 42. Be2 {[%emt 0:03:36]} Nxc5 {[%emt 0:00:30]} 43. Bf3 {[%emt 0:00:30]} Nd3+ {[%emt 0:00:31]} 44. Kg3 {[%emt 0:04:46]} Ne1 {[%emt 0:00:19]} 45. g5 {[%emt 0:01:17]} Rxf3+ {[%emt 0:00:30]} 46. Kg4 {[%emt 0:00:30]} Rf4+ {[%emt 0:00:30]} 47. Kh5 {[%emt 0:00:30]} Rxe4 {[%emt 0:00:30]} 48. gxf6+ {[%emt 0:00:00]} gxf6 {[%emt 0:01:27]} 49. h4 {[%emt 0:00:23]} Nf3 {[%emt 0:01:02]} 50. Kh6 {[%emt 0:00:10]} Rxh4+ {[%emt 0:00:00]} 0-1

[Event "Turkish-ch Youth U16 2024"]
[Site "Belek Antalya"]
[Date "2024.01.27"]
[Round "9"]
[White "Kucuk, Aybike"]
[Black "Ercan, Hilal"]
[Result "1-0"]
[ECO "D26"]
[WhiteElo "1672"]
[BlackElo "1471"]
[Annotator "NA RC COMBH"]
[PlyCount "79"]
[EventDate "2024.01.21"]
[EventType "swiss"]
[EventCountry "TUR"]
[SourceTitle "playchess.com"]
[Source "ChessBase"]
[SourceQuality "1"]
[TimeControl "5400+30"]

1. d4 {[%emt 0:01:00]} d5 {[%emt 0:01:00]} 2. c4 {[%emt 0:00:00]} dxc4 {[%emt 0:00:30]} 3. Nf3 {[%emt 0:00:00]} Nf6 {[%emt 0:00:30]} 4. e3 {[%emt 0:00:30]} e6 {[%emt 0:01:30]} 5. Bxc4 {[%emt 0:00:30]} c5 {[%emt 0:01:30]} 6. O-O {[%emt 0:00:30]} cxd4 {[%emt 0:00:30]} 7. exd4 {[%emt 0:04:30]} Be7 {[%emt 0:07:30]} 8. Nc3 {[%emt 0:01:30]} O-O {[%emt 0:00:30]} 9. Bf4 {[%emt 0:05:30]} a6 {[%emt 0:05:30]} 10. a4 {[%emt 0:01:30]} Nc6 {[%emt 0:02:30]} 11. Rc1 {[%emt 0:02:30]} Nb4 {[%emt 0:00:30]} 12. Qe2 {[%emt 0:04:30]} b6 {[%emt 0:05:30]} 13. Rfd1 {[%emt 0:07:30]} Bb7 {[%emt 0:02:30]} 14. Ne5 {[%emt 0:01:30]} Nbd5 {[%emt 0:02:30]} 15. Bg3 {[%emt 0:01:30]} Nxc3 {[%emt 0:03:30]} 16. bxc3 {[%emt 0:03:30]} Ne4 {[%emt 0:00:30]} 17. Bf4 {[%emt 0:07:30]} Bg5 {[%emt 0:05:30]} 18. Bxg5 {[%emt 0:05:30]} Qxg5 {[%emt 0:00:30]} 19. f3 {[%emt 0:00:30]} Nf6 {[%emt 0:03:30]} 20. Qd2 {[%emt 0:02:30]} Qxd2 {[%emt 0:05:30]} 21. Rxd2 {[%emt 0:00:30]} Bd5 {[%emt 0:02:30]} 22. Bxd5 {[%emt 0:07:30]} exd5 {[%emt 0:01:30]} 23. Rb2 {[%emt 0:01:30]} Rfb8 {[%emt 0:03:30]} 24. Rcb1 {[%emt 0:06:30]} Rc8 {[%emt 0:03:30]} 25. Rxb6 {[%emt 0:05:30]} Rxc3 {[%emt 0:00:30]} 26. Rb7 {[%emt 0:00:30]} h6 {[%emt 0:01:30]} 27. Rxf7 {[%emt 0:05:30]} Ra3 {[%emt 0:04:30]} 28. Rbb7 {[%emt 0:03:30]} Ne8 {[%emt 0:00:30]} 29. h4 {[%emt 0:03:00]} h5 {[%emt 0:00:30]} 30. f4 {[%emt 0:00:30]} Rc8 {[%emt 0:03:30]} 31. f5 {[%emt 0:04:25]} Rc1+ {[%emt 0:01:30]} 32. Kh2 {[%emt 0:00:52]} Raa1 {[%emt 0:00:30]} 33. Ng6 {[%emt 0:00:43]} Rh1+ {[%emt 0:00:30]} 34. Kg3 {[%emt 0:00:30]} Ra3+ {[%emt 0:00:00]} 35. Kf4 {[%emt 0:00:48]} Rf1+ {[%emt 0:00:00]} 36. Kg5 {[%emt 0:01:08]} Rg3+ {[%emt 0:01:30]} 37. Kxh5 {[%emt 0:00:04]} Nf6+ {[%emt 0:00:30]} 38. Rxf6 {[%emt 0:00:30]} gxf6 {[%emt 0:00:00]} 39. Kh6 {[%emt 0:00:00]} Rxg6+ {[%emt 0:02:00]} 40. fxg6 {[%emt 0:00:02]} 1-0

[Event "Turkish-ch Youth U16 2024"]
[Site "Belek Antalya"]
[Date "2024.01.27"]
[Round "9"]
[White "Akkaya, Atakan"]
[Black "Topuz, Mirac Melih"]
[Result "1-0"]
[ECO "B30"]
[WhiteElo "1595"]
[BlackElo "2154"]
[Annotator "NA RC"]
[PlyCount "125"]
[EventDate "2024.01.21"]
[EventType "swiss"]
[EventCountry "TUR"]
[SourceTitle "playchess.com"]
[Source "ChessBase"]
[SourceQuality "1"]
[TimeControl "5400+30"]

1. e4 {[%emt 0:01:00]} c5 {[%emt 0:07:00]} 2. Nf3 {[%emt 0:00:30]} Nc6 {[%emt 0:00:00]} 3. Bb5 {[%emt 0:00:30]} e5 {[%emt 0:00:00]} 4. Bxc6 {[%emt 0:12:30]} dxc6 {[%emt 0:01:30]} 5. d3 {[%emt 0:01:30]} Bd6 {[%emt 0:00:30]} 6. h3 {[%emt 0:00:30]} Ne7 {[%emt 0:00:00]} 7. a4 {[%emt 0:02:30]} O-O {[%emt 0:00:00]} 8. Nbd2 {[%emt 0:03:30]} f6 {[%emt 0:00:00]} 9. Nc4 {[%emt 0:08:30]} Bc7 {[%emt 0:00:00]} 10. Be3 {[%emt 0:00:30]} b6 {[%emt 0:00:30]} 11. O-O {[%emt 0:11:30]} Be6 {[%emt 0:00:30]} 12. Qe2 {[%emt 0:08:30]} a5 {[%emt 0:03:30]} 13. Rad1 {[%emt 0:07:30]} Qe8 {[%emt 0:03:30]} 14. Rfe1 {[%emt 0:09:30]} Qf7 {[%emt 0:03:30]} 15. Nfd2 {[%emt 0:02:30]} Kh8 {[%emt 0:08:30]} 16. c3 {[%emt 0:01:30]} Rfd8 {[%emt 0:01:30]} 17. Ra1 {[%emt 0:04:30]} Qg6 {[%emt 0:08:30]} 18. Kh1 {[%emt 0:00:30]} f5 {[%emt 0:00:30]} 19. f3 {[%emt 0:02:30]} Rab8 {[%emt 0:19:30]} 20. Reb1 {[%emt 0:00:34]} Rd7 {[%emt 0:13:30]} 21. b4 {[%emt 0:02:15]} axb4 {[%emt 0:00:30]} 22. cxb4 {[%emt 0:00:22]} cxb4 {[%emt 0:00:30]} 23. Rxb4 {[%emt 0:00:33]} c5 {[%emt 0:00:30]} 24. Rb2 {[%emt 0:00:30]} Nc6 {[%emt 0:03:30]} 25. a5 {[%emt 0:03:35]} b5 {[%emt 0:15:14]} 26. Nb6 {[%emt 0:06:34]} Bxb6 {[%emt 0:00:30]} 27. axb6 {[%emt 0:00:00]} Nb4 {[%emt 0:00:00]} 28. Ra3 {[%emt 0:00:21]} Rbd8 {[%emt 0:00:00]} 29. b7 {[%emt 0:00:30]} Rxb7 {[%emt 0:00:00]} 30. Bxc5 {[%emt 0:00:30]} Nc6 {[%emt 0:00:00]} 31. Ra6 {[%emt 0:00:30]} Rc8 {[%emt 0:07:29]} 32. d4 {[%emt 0:08:24]} exd4 {[%emt 0:02:33]} 33. Rxb5 {[%emt 0:00:01]} d3 {[%emt 0:01:23]} 34. Qxd3 {[%emt 0:00:30]} Rd7 {[%emt 0:00:30]} 35. Qe2 {[%emt 0:01:54]} Rcd8 {[%emt 0:02:14]} 36. Rxc6 {[%emt 0:01:12]} Rxd2 {[%emt 0:01:00]} 37. Qxd2 {[%emt 0:00:10]} Rxd2 {[%emt 0:00:30]} 38. Rb8+ {[%emt 0:00:00]} Bg8 {[%emt 0:00:00]} 39. Rxg6 {[%emt 0:00:19]} hxg6 {[%emt 0:00:00]} 40. e5 {[%emt 0:00:23]} Kh7 {[%emt 0:00:11]} 41. Bf8 {[%emt 0:00:30]} Re2 {[%emt 0:00:55]} 42. Rb7 {[%emt 0:01:18]} Rxe5 {[%emt 0:00:30]} 43. Rxg7+ {[%emt 0:00:00]} Kh8 {[%emt 0:00:23]} 44. Rxg6 {[%emt 0:00:00]} Re8 {[%emt 0:00:30]} 45. Rf6 {[%emt 0:00:35]} Be6 {[%emt 0:00:29]} 46. Kh2 {[%emt 0:00:10]} Kg8 {[%emt 0:00:30]} 47. Bh6 {[%emt 0:00:30]} Kh7 {[%emt 0:00:00]} 48. h4 {[%emt 0:00:00]} Bc8 {[%emt 0:00:12]} 49. Bg5 {[%emt 0:00:30]} Kg7 {[%emt 0:00:30]} 50. h5 {[%emt 0:00:30]} Be6 {[%emt 0:00:30]} 51. Kg3 {[%emt 0:00:23]} Bc8 {[%emt 0:01:18]} 52. h6+ {[%emt 0:00:30]} Kh7 {[%emt 0:00:30]} 53. Rf7+ {[%emt 0:00:30]} Kg6 {[%emt 0:00:30]} 54. Rg7+ {[%emt 0:00:30]} Kh5 {[%emt 0:00:00]} 55. h7 {[%emt 0:00:36]} Be6 {[%emt 0:00:00]} 56. Kf4 {[%emt 0:00:08]} Rh8 {[%emt 0:00:08]} 57. Ke5 {[%emt 0:00:51]} Bb3 {[%emt 0:00:27]} 58. g4+ {[%emt 0:02:19]} fxg4 {[%emt 0:00:30]} 59. fxg4+ {[%emt 0:00:30]} Kxg4 {[%emt 0:00:30]} 60. Bf6+ {[%emt 0:00:00]} Kf3 {[%emt 0:00:44]} 61. Rd7 {[%emt 0:00:00]} Re8+ {[%emt 0:00:30]} 62. Kd4 {[%emt 0:00:00]} Ba4 {[%emt 0:00:44]} 63. Rc7 {[%emt 0:00:15]} 1-0

[Event "Turkish-ch Youth U16 2024"]
[Site "Belek Antalya"]
[Date "2024.01.27"]
[Round "9"]
[White "Tutmaz, Bugra Hamza"]
[Black "Ceyhan, Mert"]
[Result "0-1"]
[ECO "B75"]
[WhiteElo "1531"]
[BlackElo "2020"]
[Annotator "NA RC"]
[PlyCount "80"]
[EventDate "2024.01.21"]
[EventType "swiss"]
[EventCountry "TUR"]
[SourceTitle "playchess.com"]
[Source "ChessBase"]
[SourceQuality "1"]
[TimeControl "5400+30"]

1. e4 {[%emt 0:01:00]} c5 {[%emt 0:08:00]} 2. Nf3 {[%emt 0:00:00]} d6 {[%emt 0:00:30]} 3. d4 {[%emt 0:00:00]} cxd4 {[%emt 0:00:30]} 4. Nxd4 {[%emt 0:00:30]} Nf6 {[%emt 0:00:30]} 5. Nc3 {[%emt 0:00:30]} g6 {[%emt 0:00:30]} 6. Be3 {[%emt 0:00:30]} Bg7 {[%emt 0:00:30]} 7. f3 {[%emt 0:00:30]} a6 {[%emt 0:00:30]} 8. Qd2 {[%emt 0:00:30]} h5 {[%emt 0:00:30]} 9. Bc4 {[%emt 0:00:30]} b5 {[%emt 0:00:30]} 10. Bd5 {[%emt 0:00:30]} Nxd5 {[%emt 0:00:30]} 11. Nxd5 {[%emt 0:00:00]} e6 {[%emt 0:00:30]} 12. Nc3 {[%emt 0:11:00]} Nd7 {[%emt 0:02:30]} 13. O-O-O {[%emt 0:00:30]} Ne5 {[%emt 0:01:30]} 14. Kb1 {[%emt 0:01:30]} Nc4 {[%emt 0:03:30]} 15. Qd3 {[%emt 0:01:30]} Bb7 {[%emt 0:03:30]} 16. h4 {[%emt 0:04:30]} Rc8 {[%emt 0:03:30]} 17. Bc1 {[%emt 0:02:30]} Qa5 {[%emt 0:02:30]} 18. Nce2 {[%emt 0:03:30]} O-O {[%emt 0:03:30]} 19. f4 {[%emt 0:07:30]} Qb4 {[%emt 0:03:30]} 20. c3 {[%emt 0:06:30]} Qc5 {[%emt 0:00:30]} 21. Nc2 {[%emt 0:01:30]} f5 {[%emt 0:02:30]} 22. Ng3 {[%emt 0:02:30]} Rfe8 {[%emt 0:07:30]} 23. Rh2 {[%emt 0:11:30]} a5 {[%emt 0:03:30]} 24. Rh3 {[%emt 0:06:30]} b4 {[%emt 0:02:30]} 25. b3 {[%emt 0:04:30]} Na3+ {[%emt 0:01:30]} 26. Nxa3 {[%emt 0:03:30]} bxa3 {[%emt 0:00:30]} 27. c4 {[%emt 0:03:30]} d5 {[%emt 0:01:30]} 28. cxd5 {[%emt 0:01:30]} exd5 {[%emt 0:03:30]} 29. exf5 {[%emt 0:00:30]} Ba6 {[%emt 0:00:30]} 30. Qd2 {[%emt 0:00:30]} Re3 {[%emt 0:01:30]} 31. Ne4 {[%emt 0:07:16]} Bd3+ {[%emt 0:00:30]} 32. Qxd3 {[%emt 0:01:48]} Rxd3 {[%emt 0:00:30]} 33. Nxc5 {[%emt 0:00:30]} Rxd1 {[%emt 0:00:30]} 34. Kc2 {[%emt 0:04:05]} Rxc1+ {[%emt 0:00:30]} 35. Kxc1 {[%emt 0:00:30]} Rxc5+ {[%emt 0:00:30]} 36. Kd2 {[%emt 0:00:30]} gxf5 {[%emt 0:00:30]} 37. Rg3 {[%emt 0:00:30]} Kf7 {[%emt 0:00:30]} 38. Rg5 {[%emt 0:00:30]} Bf6 {[%emt 0:00:30]} 39. Rg3 {[%emt 0:00:30]} d4 {[%emt 0:00:30]} 40. Rh3 {[%emt 0:03:59]} Rc3 {[%emt 0:00:00]} 0-1